[Event "Romanian Team Blitz Open 2022"]
[Site "Sebes"]
[Date "2022.12.04"]
[Round "5.4"]
[White "Gavrilescu, David"]
[Black "Zubcu, Vlad-George"]
[Result "1-0"]
[ECO "B40"]
[WhiteElo "2523"]
[BlackElo "2135"]
[Annotator "TA"]
[PlyCount "71"]
[EventDate "2022.12.04"]
[EventType "blitz"]
[EventCountry "ROU"]
[SourceTitle "playchess.com"]
[Source "ChessBase"]
[SourceQuality "1"]
[TimeControl "180+2"]

{[%evp 9,71,22,20,20,27,8,14,24,32,32,33,29,30,29,58,53,113,114,139,111,113,85,90,98,89,77,130,128,144,158,153,153,189,179,186,180,177,189,185,83,179,177,178,175,195,172,189,30,30,0,0,-299,-283,-285,0,0,29,-97,-108,-204,-199,-231,1058,881]} 1. e4 {[%emt 0:00:02]} c5 {[%emt 0:00:00]} 2. Nf3 {[%emt 0:00:01]} e6 {[%emt 0:00:01]} 3. b3 {[%emt 0:00:02]} a6 {[%emt 0:00:07]} 4. c4 {[%emt 0:00:02]} b6 {[%emt 0:00:19]} 5. Bb2 {[%emt 0:00:03]} Bb7 {[%emt 0:00:00]} 6. Nc3 {[%emt 0:00:01] B40: Sicilian: 2...e6, Unusual lines.} Nc6 {[%emt 0:00:04]} 7. d4 {[%emt 0:00:02]} cxd4 {[%emt 0:00:07]} 8. Nxd4 {[%emt 0:00:01] [#] The position is equal.} Nxd4 $146 {[%emt 0:00:09]} ({Predecessor:} 8... Bc5 9. Nxc6 Bxc6 10. Bd3 Qg5 11. O-O Ne7 12. Qc1 h6 13. Ne2 Qh4 14. Qf4 Qxf4 15. Nxf4 {0-1 (74) Duong,T (2230)-Rosen,E (2345) Montreal 2019}) 9. Qxd4 {[%emt 0:00:02]} Nf6 {[%emt 0:00:01]} 10. Be2 {[%emt 0:00:17]} Bc5 {[%emt 0:00:24] Against e5} 11. Qd3 {[%emt 0:00:01]} Bb4 {[%emt 0:00:20]} 12. O-O {[%emt 0:00:09]} O-O {[%emt 0:00:11]} ({Better is} 12... Qc7 $14) 13. e5 $16 {[%emt 0:00:14]} Bxc3 {[%emt 0:00:05]} 14. Bxc3 {[%emt 0:00:01]} Ne4 {[%emt 0:00:05]} 15. Bb4 {[%emt 0:00:16] This pair of bishops is nice.} (15. Bd4 {simplifies} d5 16. b4 dxc4 17. Qe3) 15... Nc5 {[%emt 0:00:14]} 16. Qd4 {[%emt 0:00:07] White is more active.} Qg5 {[%emt 0:00:34][%csl Gb7][%cal Rg5g2]} 17. f3 {[%emt 0:00:01]} Rad8 {[%emt 0:00:03]} (17... f6 $142) 18. Rad1 {[%emt 0:00:09]} f6 {[%emt 0:00:08]} 19. exf6 {[%emt 0:00:27]} Rxf6 {[%emt 0:00:00]} 20. Bd2 {[%emt 0:00:02]} Qf5 {[%emt 0:00:13]} 21. b4 {[%emt 0:00:11]} e5 {[%emt 0:00:10]} 22. Qe3 {[%emt 0:00:03]} Ne6 {[%emt 0:00:01]} 23. Bd3 {[%emt 0:00:08]} Qh5 {[%emt 0:00:05]} 24. Qxb6 {[%emt 0:00:05]} (24. Bc3 $1 $18 {has better winning chances.}) 24... Bc6 {[%emt 0:00:12]} (24... Ba8 $16) 25. b5 $18 {[%emt 0:00:06]} (25. Qxa6 $2 Ra8 26. Qb6 Nd4 $19) 25... axb5 {[%emt 0:00:02]} 26. cxb5 {[%emt 0:00:01]} Bd5 {[%emt 0:00:02]} 27. Rde1 {[%emt 0:00:13] Hoping for Qd6.} Re8 {[%emt 0:00:04]} 28. Qd6 $2 {[%emt 0:00:13]} (28. Qf2 $18) 28... Nf4 $11 {[%emt 0:00:01]} 29. Qxd7 {[%emt 0:00:21] Bxf4 is the strong threat. Chess con chili.} (29. Qc5 $5 {[%cal Rd2f4]} d6 30. Qc3 $14) 29... Be6 $1 {[%emt 0:00:09][%mdl 64] Deflection} 30. Qc7 {[%emt 0:00:27][%mdl 8192]} (30. Qd6 $11 Bh3 31. Bc4+ Kh8 32. Qxf6 $1 gxf6 33. Bxf4 (33. gxh3 $2 Qg6+ 34. Kf2 Qc2 $19)) 30... Nxd3 $19 {[%emt 0:00:02]} 31. Re3 {[%emt 0:00:01]} Nf4 {[%emt 0:00:07]} (31... Rc8 $19 32. Qd6 Bc4) 32. Rxe5 $11 {[%emt 0:00:01]} Qh4 {[%emt 0:00:02] aiming for ...Rh6.} (32... Qh6 $5 {[%cal Rf4h3]} 33. Kh1 Rc8 $11) 33. Bxf4 {[%emt 0:00:05]} (33. Re4 $11 Nh3+ 34. gxh3 Qxh3 35. Rf2) 33... Qxf4 $17 {[%emt 0:00:01]} 34. b6 {[%emt 0:00:01] [#]} (34. Qc3 $17 {was called for.}) 34... Qd4+ $1 $19 {[%emt 0:00:02]} ({And not} 34... Rh6 35. h3 Rf8 36. b7 Bxh3 37. b8=R $11 (37. b8=Q Qd4+ 38. Rf2 Qa1+ 39. Rf1 Qd4+ 40. Rf2 Qa1+ 41. Rf1 Qd4+ $11)) ({Resist} 34... Rc8 35. Qd6 $18 (35. Re4 $2 Qxc7 36. bxc7 Rxc7 $19)) 35. Kh1 {[%emt 0:00:01]} Qc4 $4 {[%emt 0:00:03][%mdl 8192] Inhibits b7.} (35... Rc8 $19 36. b7 Rxc7 37. b8=Q+ Rc8) 36. Qxc4 {[%emt 0:00:02] Weighted Error Value: White=0.41/Black=0.32} 1-0

[Event "Romanian Team Blitz Open 2022"]
[Site "Sebes"]
[Date "2022.12.04"]
[Round "5.5"]
[White "Miron, Lucian-Costin"]
[Black "Costachi, Mihnea"]
[Result "1/2-1/2"]
[ECO "D78"]
[WhiteElo "2510"]
[BlackElo "2476"]
[Annotator "TA"]
[PlyCount "39"]
[EventDate "2022.12.04"]
[EventType "blitz"]
[EventCountry "ROU"]
[SourceTitle "playchess.com"]
[Source "ChessBase"]
[SourceQuality "1"]
[TimeControl "180+2"]

{[%evp 13,39,-17,21,0,-3,-64,-62,-79,-72,-56,-36,-76,-65,-109,-94,-98,-16,-16,-16,-47,-55,-87,-61,-63,-47,-49,-23,-39]} 1. Nf3 {[%emt 0:03:04]} d5 2. g3 {[%emt 0:00:00]} Nf6 {[%emt 0:00:04]} 3. Bg2 {[%emt 0:00:00]} g6 {[%emt 0:00:02]} 4. O-O {[%emt 0:00:00]} Bg7 {[%emt 0:00:01]} 5. d4 {[%emt 0:00:00]} O-O {[%emt 0:00:02]} 6. c4 {[%emt 0:00:00]} c6 {[%emt 0:00:01]} 7. Nc3 $1 {[%emt 0:00:00][%mdl 4] 7.Nc3 is a critical line.} Ne4 {[%emt 0:00:23]} 8. Nxe4 {[%emt 0:00:00] D78: Fianchetto Grünfeld: 6 0-0 c6.} (8. Qb3 {is interesting.} dxc4 9. Qxc4 Bf5 10. Bf4) 8... dxe4 {[%emt 0:00:01] [#]} 9. Nd2 $146 {[%emt 0:00:00]} (9. Ng5 $11) ({Predecessor:} 9. Ng5 Qxd4 10. Qxd4 Bxd4 11. Rd1 Bg7 12. Nxe4 Na6 13. a3 Be6 14. Bg5 Rfe8 15. Rac1 f5 {0-1 (64) Alexandrova,A (1842)-Zubova,M (2214) Nova Gorica 2022}) 9... Qxd4 $15 {[%emt 0:00:09] Threatens to win with ...f5.} 10. e3 {[%emt 0:00:00] Inhibits f5. Black is slightly better.} Qc5 {[%emt 0:00:23]} 11. Bxe4 {[%emt 0:00:00]} Bh3 {[%emt 0:00:05]} 12. Re1 {[%emt 0:00:00][%cal Ob2b4]} Rd8 {[%emt 0:00:13]} 13. Qc2 {[%emt 0:00:00]} Nd7 {[%emt 0:00:10]} 14. Rb1 {[%emt 0:00:00]} Nf6 {[%emt 0:00:06]} (14... Qh5 $17 {And now ...Nc5 would win.} 15. Bf3 Bg4 16. Bxg4 Qxg4) 15. Bg2 $11 {[%emt 0:00:00]} Qh5 {[%emt 0:00:12]} 16. Bxh3 {[%emt 0:00:00]} Qxh3 {[%emt 0:00:02]} 17. Nf1 {[%emt 0:00:00]} h5 {[%emt 0:00:05]} 18. b3 {[%emt 0:00:00]} h4 {[%emt 0:00:05]} 19. Ba3 {[%emt 0:00:00]} Rd7 {[%emt 0:00:08]} 20. Rbd1 {[%emt 0:00:00] Weighted Error Value: White=0.23 (precise) /Black=0.25 (precise)} 1/2-1/2

[Event "Romanian Team Blitz Open 2022"]
[Site "Sebes"]
[Date "2022.12.04"]
[Round "5.6"]
[White "Sfarlog, Tudor-Vlad"]
[Black "Secheres, Adrian-Simion"]
[Result "0-1"]
[ECO "E94"]
[WhiteElo "2283"]
[BlackElo "2365"]
[Annotator "TA"]
[PlyCount "79"]
[EventDate "2022.12.04"]
[EventType "blitz"]
[EventCountry "ROU"]
[SourceTitle "playchess.com"]
[Source "ChessBase"]
[SourceQuality "1"]
[TimeControl "180+2"]

{[%evp 23,79,10,3,-28,-14,-25,-15,-47,-38,-45,-7,-2,-5,-5,-5,-6,-5,-19,-12,-16,0,0,0,0,0,0,0,-89,-91,-174,-182,-192,-204,-190,-143,-132,-135,-146,-127,-136,-125,-123,-122,-122,-122,-118,-119,-114,-117,-290,-285,-285,-274,-701,-694,-671,-649,-724]} 1. Nf3 {[%emt 0:00:01]} g6 {[%emt 0:00:04]} 2. c4 {[%emt 0:00:01]} Bg7 {[%emt 0:00:02]} 3. Nc3 {[%emt 0:00:01]} d6 {[%emt 0:00:03]} 4. e4 {[%emt 0:00:04]} Nf6 {[%emt 0:00:02]} 5. d4 {[%emt 0:00:01]} O-O {[%emt 0:00:02]} 6. Be2 {[%emt 0:00:01]} e5 {[%emt 0:00:01]} 7. O-O {[%emt 0:00:01]} exd4 {[%emt 0:00:01]} 8. Nxd4 {[%emt 0:00:01]} Re8 {[%emt 0:00:01]} 9. f3 {[%emt 0:00:05]} c6 {[%emt 0:00:01]} 10. Nc2 {[%emt 0:00:20]} Na6 {[%emt 0:00:03]} 11. Be3 {[%emt 0:00:02]} d5 {[%emt 0:00:01]} 12. cxd5 {[%emt 0:00:08]} cxd5 {[%emt 0:00:01]} 13. exd5 {[%emt 0:00:06] [#] E94: King's Indian: Classical: 6 Be2 e5 7 0-0: Various Black 7th moves.} Nb4 $1 {[%emt 0:00:01][%mdl 64]} 14. Bd4 {[%emt 0:00:19]} (14. Nxb4 Rxe3) 14... Nbxd5 {[%emt 0:00:15]} 15. Bb5 {[%emt 0:00:07] [#] aiming for Nxd5. The position is equal.} Bd7 $146 {[%emt 0:00:46]} ({Predecessor:} 15... Nxc3 16. bxc3 Re6 17. Qb1 b6 18. Qb3 Qc7 19. Bc4 Rc6 20. Bb5 Be6 21. Qa3 Rc5 22. Bxc5 bxc5 {0-1 (43) Sadhwani,R (2619)-Dubov,D (2702) Chess.com INT 2022}) 16. Bc4 {[%emt 0:00:01]} Be6 {[%emt 0:00:15] And now ...Nxc3 would win.} 17. Nxd5 {[%emt 0:00:07]} Nxd5 {[%emt 0:00:10]} 18. Bxg7 {[%emt 0:00:03]} Kxg7 {[%emt 0:00:01]} 19. Qd4+ {[%emt 0:00:04]} Nf6 {[%emt 0:00:18]} 20. Bxe6 {[%emt 0:00:17]} Rxe6 {[%emt 0:00:05]} 21. Rad1 {[%emt 0:00:05]} Qxd4+ {[%emt 0:00:08]} 22. Nxd4 {[%emt 0:00:01]} Rb6 {[%emt 0:00:01]} 23. b3 {[%emt 0:00:09]} Rc8 {[%emt 0:00:11]} 24. Kf2 {[%emt 0:00:04]} h5 {[%emt 0:00:05]} 25. Rc1 {[%emt 0:00:01] [#]} (25. Rd2 $11) 25... Rd8 $1 $17 {[%emt 0:00:04]} 26. Ne2 {[%emt 0:01:07]} (26. Rc4 $17 {might work better.}) 26... Rd2 $19 {[%emt 0:00:04]} 27. Rfd1 {[%emt 0:00:15]} Rxa2 {[%emt 0:00:04]} 28. Ra1 {[%emt 0:00:00]} Rxa1 ({Better is} 28... Rb2 $19 {White must now prevent ...Re6.} 29. Rdb1 R6xb3 30. Rxb2 Rxb2 31. Rxa7 Nd5) 29. Rxa1 {[%emt 0:00:00][%mdl 4096] Endgame KRN-KRN} a6 {[%emt 0:00:08]} 30. Nd4 {[%emt 0:00:02]} Rb4 {[%emt 0:00:02]} 31. Rd1 {[%emt 0:00:06]} Kf8 {[%emt 0:00:11]} 32. g3 {[%emt 0:00:01]} Rb6 {[%emt 0:00:11]} 33. Ke3 {[%emt 0:00:02]} Nd5+ {[%emt 0:00:01]} 34. Kd3 {[%emt 0:00:03]} Ne7 {[%emt 0:00:03]} 35. Kc4 {[%emt 0:00:08]} Rd6 {[%emt 0:00:03]} 36. Re1 $2 {[%emt 0:00:13] This costs White the game.} (36. Rd2 $17 {keeps fighting.}) 36... b5+ {[%emt 0:00:01]} 37. Kc3 {[%emt 0:00:02]} Nd5+ {[%emt 0:00:01]} 38. Kd3 $2 {[%emt 0:00:00]} (38. Kb2) 38... Nb4+ {[%emt 0:00:02]} 39. Kc3 {[%emt 0:00:01] [#]} Rxd4 {[%emt 0:00:47][%mdl 512]} 40. Kxd4 {[%emt 0:00:12] Weighted Error Value: White=0.34/Black=0.06 (flawless)} (40. Ra1 Nc6) 0-1

[Event "Romanian Team Blitz Open 2022"]
[Site "Sebes"]
[Date "2022.12.04"]
[Round "5.7"]
[White "Nastore, Pavel-Alexandru"]
[Black "Ileana, George"]
[Result "1/2-1/2"]
[ECO "D78"]
[WhiteElo "2218"]
[BlackElo "2343"]
[Annotator "TA"]
[PlyCount "128"]
[EventDate "2022.12.04"]
[EventType "blitz"]
[EventCountry "ROU"]
[SourceTitle "playchess.com"]
[Source "ChessBase"]
[SourceQuality "1"]
[TimeControl "180+2"]

{[%evp 12,128,16,-23,66,29,32,27,54,18,22,31,14,16,15,11,14,8,75,75,104,114,109,93,118,110,143,117,127,145,173,172,151,153,163,155,221,225,226,225,200,229,232,232,282,226,226,226,251,237,231,229,327,186,191,181,225,175,189,166,161,72,79,74,77,51,485,485,485,485,485,485,485,485,619,619,612,485,506,477,477,477,477,0,470,470,470,470,463,456,448,448,437,435,434,427,427,401,414,410,412,405,456,426,477,470,463,456,436,400,400,393,400,391,400,400,393,375,319]} 1. d4 {[%emt 0:00:04]} d5 {[%emt 0:00:01]} 2. Nf3 {[%emt 0:00:01]} Nf6 {[%emt 0:00:01]} 3. g3 {[%emt 0:00:01]} g6 {[%emt 0:00:04]} 4. Bg2 {[%emt 0:00:00]} Bg7 {[%emt 0:00:00]} 5. O-O {[%emt 0:00:01]} O-O {[%emt 0:00:02]} 6. c4 {[%emt 0:00:01]} c6 {[%emt 0:00:01]} 7. Nc3 {[%emt 0:00:01]} a6 {[%emt 0:00:04] D78: Fianchetto Grünfeld: 6 0-0 c6.} (7... dxc4 $11 8. e4 b5) 8. cxd5 $1 {[%emt 0:00:03][%mdl 4] is more profitable than 8.Ne5 at the moment.} cxd5 {[%emt 0:00:02]} 9. Ne5 {[%emt 0:00:01]} Nc6 {[%emt 0:00:14][%cal Of6e4] White has an edge.} 10. a3 {[%emt 0:00:23]} e6 {[%emt 0:00:10] [#]} 11. Nxc6 $146 {[%emt 0:00:03]} ({Predecessor:} 11. Bg5 Qb6 12. Nxc6 bxc6 13. Na4 Qa7 14. Bxf6 Bxf6 15. e3 a5 16. Qc2 Ba6 17. Rfc1 {1-0 (57) Kirk,M (1732)-Colsen,M (1628) Vale 2018}) 11... bxc6 {[%emt 0:00:01]} 12. Na4 {[%emt 0:00:01]} a5 {[%emt 0:00:04]} 13. Bf4 {[%emt 0:00:23]} Nd7 {[%emt 0:00:12]} 14. Rc1 {[%emt 0:00:02]} e5 {[%emt 0:00:15]} (14... Nb6 $11 {remains equal.}) 15. dxe5 $16 {[%emt 0:00:10]} Nxe5 {[%emt 0:00:01]} 16. Bxe5 {[%emt 0:00:09]} Bxe5 {[%emt 0:00:02]} 17. Rxc6 {[%emt 0:00:03]} (17. f4 Bxb2 18. Nxb2 Qb6+ 19. Rf2 Qxb2 $15) 17... Be6 {[%emt 0:00:09]} 18. Nc5 {[%emt 0:00:32]} Re8 {[%emt 0:00:32]} 19. Nxe6 {[%emt 0:00:03] White is more active.} fxe6 {[%emt 0:00:00]} 20. Qd2 {[%emt 0:00:25]} Rb8 {[%emt 0:00:06] [#]} 21. b4 $1 {[%emt 0:00:03]} axb4 {[%emt 0:00:07]} 22. axb4 {[%emt 0:00:01][%cal Ba3b4,Bb4b5,Bb5c6][%mdl 32]} Qd7 {[%emt 0:00:01]} 23. Rfc1 {[%emt 0:00:02]} Rec8 {[%emt 0:00:04]} (23... Kh8 $16 24. Bh3 d4) 24. b5 $18 {[%emt 0:00:09] And now Bh3 would win.} Rxc6 {[%emt 0:00:05]} 25. bxc6 {[%emt 0:00:02]} Qe7 {[%emt 0:00:06]} 26. Qe3 {[%emt 0:00:10]} Bd6 {[%emt 0:00:04] [#]} 27. Bh3 $1 {[%emt 0:00:18]} Kf7 {[%emt 0:00:06]} 28. Qh6 {[%emt 0:00:13]} Kg8 {[%emt 0:00:06] Inhibits c7.} 29. Qh4 {[%emt 0:00:02]} (29. c7 $6 Rc8) 29... Qf7 {[%emt 0:00:32]} 30. Qg4 {[%emt 0:00:05]} Re8 {[%emt 0:00:03]} 31. Qd4 {[%emt 0:00:18]} Bc7 {[%emt 0:00:15]} (31... Re7 $142 32. e4 Qg7 33. Bxe6+ Rxe6 34. Qxd5 (34. Qxg7+ Kxg7 35. c7 Bxc7 $18) 34... Qe5) 32. e4 {[%emt 0:00:07]} (32. Rb1 $142) 32... dxe4 {[%emt 0:00:09]} 33. Qxe4 {[%emt 0:00:02]} e5 {[%emt 0:00:05]} 34. Bd7 {[%emt 0:00:04]} Rb8 {[%emt 0:00:04]} 35. Qg4 {[%emt 0:00:02] Hoping for Be6.} Kg7 {[%emt 0:00:03]} 36. Qc4 {[%emt 0:00:03]} (36. Be6 $18 {and White stays clearly on top.} Qf6 37. Bd5) 36... Qxc4 {[%emt 0:00:02]} 37. Rxc4 $16 {[%emt 0:00:00][%mdl 4096] Endgame KRB-KRB} Rb2 {[%emt 0:00:02]} 38. Kg2 {[%emt 0:00:06]} Bb6 $2 {[%emt 0:00:03][%mdl 8192] White now steadily converts the win.} ({Black should try} 38... Kf6 $14) 39. c7 $18 {[%emt 0:00:02]} Rxf2+ {[%emt 0:00:02]} 40. Kh3 {[%emt 0:00:00]} Bxc7 {[%emt 0:00:02]} 41. Rxc7 {[%emt 0:00:01] KRB-KR} Rf7 {[%emt 0:00:02]} 42. Rb7 {[%emt 0:00:01]} Kh6 {[%emt 0:00:02]} 43. Bc6 {[%emt 0:00:01]} Rf2 {[%emt 0:00:01]} 44. Be4 {[%emt 0:00:01]} Re2 {[%emt 0:00:01]} 45. Rb4 {[%emt 0:00:02]} Kg5 {[%emt 0:00:01]} 46. Bf3 {[%emt 0:00:02]} Re3 {[%emt 0:00:01]} 47. Be4 {[%emt 0:00:03]} Re2 $1 {[%emt 0:00:03]} 48. Bd3 {[%emt 0:00:04]} Rd2 {[%emt 0:00:03]} 49. Bb1 {[%emt 0:00:01]} Kf6 {[%emt 0:00:01]} 50. Rb6+ {[%emt 0:00:01]} Kg5 {[%emt 0:00:01]} 51. Rb7 {[%emt 0:00:03]} Rd1 {[%emt 0:00:05]} 52. Bc2 {[%emt 0:00:02]} Rd2 {[%emt 0:00:01]} 53. Be4 {[%emt 0:00:02]} Rd4 {[%emt 0:00:02]} 54. Bg2 {[%emt 0:00:03]} h5 {[%emt 0:00:01]} 55. Rb2 {[%emt 0:00:03]} h4 {[%emt 0:00:02]} 56. Re2 {[%emt 0:00:01]} hxg3 {[%emt 0:00:05]} 57. hxg3 {[%emt 0:00:02]} ({Stronger than} 57. Rxe5+ Kf4 58. Re6 (58. hxg3+ $2 {perishes.} Kxe5 59. Bb7 Rb4 $19) (58. Rd5 Rxd5 59. Bxd5 gxh2 $11) 58... Kf5 $11) 57... Kf6 {[%emt 0:00:00]} 58. Be4 {[%emt 0:00:01]} Rb4 {[%emt 0:00:04]} 59. Kg2 {[%emt 0:00:02]} Rb3 {[%emt 0:00:03]} 60. Rf2+ {[%emt 0:00:01]} Kg5 {[%emt 0:00:01] White is winning.} 61. Rf8 {[%emt 0:00:03]} Re3 {[%emt 0:00:01]} 62. Bf3 {[%emt 0:00:03]} e4 {[%emt 0:00:00]} 63. Bd1 {[%emt 0:00:02]} Rd3 {[%emt 0:00:01]} 64. Be2 {[%emt 0:00:02]} Rd2 {[%emt 0:00:02][%mdl 32768] Weighted Error Value: White=0.24 (precise) /Black=0.30. An unexpected result.} 1/2-1/2

[Event "Romanian Team Blitz Open 2022"]
[Site "Sebes"]
[Date "2022.12.04"]
[Round "5.8"]
[White "Negrean, Andrei"]
[Black "Ciorgovean, Iustin"]
[Result "1/2-1/2"]
[ECO "E60"]
[WhiteElo "1991"]
[BlackElo "2319"]
[Annotator "TA"]
[PlyCount "125"]
[EventDate "2022.12.04"]
[EventType "blitz"]
[EventCountry "ROU"]
[SourceTitle "playchess.com"]
[Source "ChessBase"]
[SourceQuality "1"]
[TimeControl "180+2"]

{[%evp 12,125,24,0,-7,14,10,21,9,12,22,16,58,-72,-68,-70,-29,-50,-41,-75,-57,-92,-66,-64,0,-72,-64,-71,0,-39,0,-67,23,-114,-86,-111,-118,-118,-92,-89,-89,-84,-47,-58,-32,-39,-32,-48,-18,-32,-11,-46,0,-69,-69,-69,-69,-93,-47,-74,0,0,0,-53,0,0,0,0,0,0,0,0,0,0,0,0,0,0,0,0,0,0,0,0,0,0,0,0,0,0,0,0,0,0,0,-53,0,0,0,0,0,0,0,0,0,0,0,0,0,0,0,0,0,0,0,0]} 1. d4 {[%emt 0:00:01]} Nf6 {[%emt 0:00:00]} 2. Nf3 {[%emt 0:00:01]} g6 {[%emt 0:00:01]} 3. g3 {[%emt 0:00:03]} c5 {[%emt 0:00:01]} 4. c4 {[%emt 0:00:09]} Bg7 {[%emt 0:00:08]} 5. Bg2 {[%emt 0:00:04]} Qa5+ {[%emt 0:00:01]} 6. Nc3 {[%emt 0:00:10]} Ne4 {[%emt 0:00:02]} 7. Bd2 {[%emt 0:00:04]} (7. Qd3 $5 {[%cal Rd3e4]} cxd4 8. Nxd4 $14) 7... Nxd2 {[%emt 0:00:02] E60: King's Indian: Unusual lines and Fianchetto Variation without Nc3.} 8. Qxd2 {[%emt 0:00:02]} cxd4 {[%emt 0:00:12]} 9. Nxd4 {[%emt 0:00:02]} Nc6 {[%emt 0:00:02]} 10. e3 {[%emt 0:00:22]} O-O {[%emt 0:00:18]} 11. O-O {[%emt 0:00:06]} Qc5 {[%emt 0:00:37] [#]} 12. Nxc6 $146 {[%emt 0:01:02]} (12. Nd5 $14 {stays ahead.}) ({Predecessor:} 12. Nd5 a5 13. Rfd1 Rb8 14. Rac1 e6 15. Nb3 Qa7 16. Nc3 a4 17. Nd4 Nxd4 18. exd4 {½-½ (52) Podgaets,M (2450)-Odeev,H (2315) Odessa 1991}) 12... dxc6 $17 {[%emt 0:00:01]} 13. Rac1 {[%emt 0:00:17]} Be6 {[%emt 0:00:15]} 14. b3 {[%emt 0:00:06]} Rfd8 {[%emt 0:00:11]} 15. Qc2 {[%emt 0:00:07]} Qa5 {[%emt 0:00:21]} 16. h4 {[%emt 0:00:15]} Bxc3 {[%emt 0:00:44]} 17. Qxc3 {[%emt 0:00:01]} Qxa2 {[%emt 0:00:07]} (17... Qxc3 $15 18. Rxc3 Rd2) 18. Rfd1 {[%emt 0:00:19]} (18. Qb4 $1 $11) 18... Qe2 {[%emt 0:00:09]} 19. Rd4 {[%emt 0:00:11]} Rxd4 {[%emt 0:00:11]} (19... c5 $17 20. Rxd8+ Rxd8) 20. Qxd4 {[%emt 0:00:02]} (20. exd4 $5 {[%cal Rg2f3]} Qg4 21. Qb4 $11) 20... Qg4 {[%emt 0:00:02]} 21. Qd2 {[%emt 0:00:04]} (21. Qc5 $11) 21... Qf5 {[%emt 0:00:03]} (21... Re8 $15) 22. e4 {[%emt 0:00:07]} (22. Qb4 $11 {was the only way to keep the balance.}) 22... Qe5 {[%emt 0:00:03]} 23. f4 {[%emt 0:00:03]} Qc5+ {[%emt 0:00:04]} 24. Qf2 {[%emt 0:00:03]} Qxf2+ {[%emt 0:00:02]} 25. Kxf2 {[%emt 0:00:01][%mdl 4096] Endgame KRB-KRB} Rd8 {[%emt 0:00:01] And now ...Rd2+ would win.} 26. Ke3 {[%emt 0:00:02] Prevents Rd2.} f6 {[%emt 0:00:02]} 27. Bf3 {[%emt 0:00:02]} Kf7 {[%emt 0:00:01]} 28. g4 {[%emt 0:00:03]} a6 {[%emt 0:00:02]} 29. g5 {[%emt 0:00:02]} f5 {[%emt 0:00:02]} 30. e5 {[%emt 0:00:03]} Kg7 {[%emt 0:00:01]} 31. Rh1 {[%emt 0:00:05]} h6 {[%emt 0:00:02]} (31... c5 $15 {feels stronger.}) 32. Rd1 {[%emt 0:00:03]} ({White should play} 32. gxh6+ $11 Kxh6 33. h5) 32... Rxd1 $15 {[%emt 0:00:02]} 33. Bxd1 {[%emt 0:00:00] KB-KB} c5 {[%emt 0:00:01]} 34. Bf3 {[%emt 0:00:02]} b6 {[%emt 0:00:00]} ({Black should try} 34... b5 $17 35. Kd3 bxc4+ 36. bxc4 Bd7) 35. Kd3 {[%emt 0:00:02]} hxg5 {[%emt 0:00:02]} (35... Bd7 $17) 36. hxg5 $11 {[%emt 0:00:01]} Kf7 {[%emt 0:00:02]} 37. Kc3 {[%emt 0:00:03]} (37. Bc6 $11) 37... a5 {[%emt 0:00:01]} (37... Ke8 $1 $15) 38. Bc6 {[%emt 0:00:02]} Bc8 {[%emt 0:00:03]} 39. Kd3 {[%emt 0:00:01]} e6 {[%emt 0:00:01]} 40. Ke3 {[%emt 0:00:02]} Ke7 {[%emt 0:00:01]} 41. Kd3 $1 {[%emt 0:00:03]} Bd7 {[%emt 0:00:01]} 42. Bb5 {[%emt 0:00:04]} Kd8 {[%emt 0:00:01]} 43. Ke3 {[%emt 0:00:01]} Kc7 {[%emt 0:00:01]} 44. Kd3 {[%emt 0:00:02]} Bc6 {[%emt 0:00:02]} 45. Kc3 {[%emt 0:00:01]} Kb7 {[%emt 0:00:06]} 46. Kd3 {[%emt 0:00:02]} Kc7 {[%emt 0:00:01]} 47. Kc3 {[%emt 0:00:01]} Bd7 {[%emt 0:00:05]} 48. Kd3 {[%emt 0:00:01]} Kd8 {[%emt 0:00:03]} 49. Kc3 {[%emt 0:00:01]} Bc8 {[%emt 0:00:01]} 50. Kd3 {[%emt 0:00:02]} Bb7 {[%emt 0:00:01]} 51. Kc3 {[%emt 0:00:01]} Be4 {[%emt 0:00:01]} 52. Ba4 {[%emt 0:00:02]} Bb7 {[%emt 0:00:05]} (52... Ke7 $11) 53. Bb5 $15 {[%emt 0:00:02]} Bc8 {[%emt 0:00:01]} (53... Ke7 $15) 54. Kd3 $11 {[%emt 0:00:01] The position is equal.} Bd7 {[%emt 0:00:01]} 55. Kc3 {[%emt 0:00:01]} Kc7 {[%emt 0:00:03]} 56. Kd3 {[%emt 0:00:01]} Bc6 {[%emt 0:00:02]} 57. Kc3 {[%emt 0:00:01]} Kb7 {[%emt 0:00:03]} 58. Kd3 {[%emt 0:00:02]} Bxb5 {[%emt 0:00:02]} 59. cxb5 {[%emt 0:00:01]} Kc7 {[%emt 0:00:01]} 60. Kc4 {[%emt 0:00:01]} Kb7 {[%emt 0:00:00]} 61. Kc3 {[%emt 0:00:01]} Kc7 {[%emt 0:00:01]} 62. Kc4 {[%emt 0:00:19]} Kb7 63. Kc3 {[%emt 0:00:02] Weighted Error Value: White=0.26 (precise) /Black=0.19 (very precise)} 1/2-1/2